bitfinex/quotes_SOLUSD_20240712
["timestamp","ask_amount","ask_price","bid_price","bid_amount"]
[1720756269263,7.4642,137.1,137.05,7.2964]
[1720756269667,7.2945,137.09,137.04,7.2969]
[1720756270172,7.2945,137.09,137.03,6.2895]
[1720756270173,7.2941,137.1,137.05,7.2965]
[1720756270380,36.27482563,137.13,137.03,6.2895]
[1720756270560,7.62482563,137.13,137.03,6.2895]
[1720756270761,7.294,137.1,137.03,6.2895]
[1720756271057,7.293,137.12,137.07,7.2951]
[1720756271275,14.91732563,137.13,137.08,7.2948]
[1720756271681,7.2925,137.13,137.08,7.2948]
[1720756271980,7.292,137.14,137.09,7.2944]
[1720756272483,7.62411389,137.15,137.11,7.293]
[1720756272782,7.2914,137.15,137.1,13.733]
[1720756272981,7.2924,137.13,137.1,6.4393]
[1720756273173,7.2924,137.13,137.08,7.2946]
[1720756273376,7.2937,137.11,137.06,13.7352]
[1720756273572,7.2931,137.12,137.07,7.2951]
[1720756273767,46.8795,137.15,137.07,7.2951]
[1720756273981,7.2929,137.12,137.07,7.2951]
[1720756274182,7.2924,137.13,137.08,7.2948]
[1720756274367,7.2928,137.12,137.07,7.2953]
[1720756274571,52.6322,137.14,137.09,7.2944]
[1720756274772,7.2924,137.13,137.08,7.2948]
[1720756274987,52.6318,137.14,137.09,7.2942]
[1720756275488,7.2924,137.13,137.08,7.2948]
[1720756275779,7.2934,137.11,137.06,13.7351]
[1720756276189,7.2931,137.12,137.07,7.2955]
[1720756276788,7.2925,137.13,137.08,7.2949]
[1720756276966,0.34,137.14,137.06,6.4393]
[1720756277168,0.17,137.14,137.06,6.4393]
[1720756277389,7.2913,137.15,137.1,7.2936]
[1720756278182,7.6307,137.16,137.11,7.2934]
[1720756278370,7.2912,137.15,137.11,7.2934]
[1720756278572,14.91564935,137.18,137.13,7.292]
[1720756278800,7.2898,137.18,137.13,7.292]
[1720756279084,71.68460094,137.2,137.12,6.2691]
[1720756279296,49.81460094,137.2,137.12,6.2691]
[1720756279503,7.2909,137.16,137.12,6.2691]
[1720756279671,7.2915,137.15,137.12,6.2691]
[1720756280270,7.2906,137.17,137.12,13.5617]
[1720756280572,7.2893,137.19,137.14,7.2917]
[1720756280865,7.2902,137.17,137.12,6.2691]
[1720756281110,7.2908,137.16,137.12,6.2691]
[1720756281665,7.2904,137.17,137.12,13.5619]
[1720756281898,31.61082127,137.2,137.12,6.2691]
[1720756282198,7.2892,137.19,137.14,7.2916]
[1720756282406,10.24962127,137.2,137.15,7.2912]
[1720756282898,7.2888,137.2,137.15,7.2912]
[1720756283190,14.91113831,137.21,137.16,7.2906]
[1720756283567,7.2887,137.2,137.15,7.2911]
[1720756283770,7.2891,137.19,137.14,7.2915]
[1720756285605,7.2891,137.19,137.15,7.2912]
[1720756285798,7.2888,137.2,137.15,7.2912]
[1720756286301,14.91123831,137.21,137.16,7.2906]
[1720756286796,14.91123831,137.21,137.17,7.2901]
[1720756286797,7.62293831,137.21,137.17,7.2901]
[1720756287100,7.2881,137.21,137.16,7.2905]
[1720756288117,7.2886,137.2,137.15,7.2911]
[1720756288793,7.2887,137.2,137.13,0.52310459]
[1720756289096,7.2888,137.2,137.15,7.2912]
[1720756289407,7.2877,137.22,137.17,7.2901]
[1720756289697,10.58221772,137.24,137.13,0.52299021]
[1720756289905,7.2873,137.23,137.18,7.2892]
[1720756290075,10.58221772,137.24,137.17,7.29]
[1720756290076,7.2876,137.22,137.17,7.29]
[1720756290276,7.2877,137.22,137.17,7.2901]
[1720756292203,18.2179,137.23,137.12,6.2691]
[1720756292393,7.2889,137.2,137.15,7.2912]
[1720756292779,7.2892,137.19,137.14,7.2916]
[1720756293111,7.2894,137.19,137.14,7.2914]
[1720756293799,7.29,137.18,137.13,7.2918]
[1720756294000,7.29,137.18,137.12,6.2691]
[1720756294202,7.2892,137.19,137.14,7.2917]
[1720756294620,7.2902,137.17,137.13,7.292]
[1720756294778,7.2907,137.16,137.12,6.2691]
[1720756294988,7.2914,137.15,137.12,6.2691]
[1720756295299,7.2909,137.16,137.12,6.2691]
[1720756295492,7.2909,137.16,137.11,23.2712]
[1720756295684,7.2913,137.15,137.11,15.9779]
[1720756296204,7.2909,137.16,137.11,23.2713]
[1720756296584,7.2913,137.15,137.11,15.9779]
[1720756297309,7.2903,137.17,137.12,7.2927]
[1720756297691,28.82,137.18,137.11,15.9779]
[1720756297885,7.2914,137.15,137.11,15.9779]
[1720756298782,50.69,137.18,137.11,15.9779]
[1720756298982,50.69,137.18,137.09,6.3469]
[1720756298983,28.65,137.16,137.09,6.3469]
[1720756299211,0.34,137.15,137.09,6.3469]
[1720756299503,7.2929,137.12,137.09,6.3469]
[1720756299800,7.2929,137.12,137.07,7.2953]
[1720756301579,7.2925,137.13,137.08,7.2949]
[1720756302390,7.2929,137.12,137.07,7.2953]
[1720756302597,7.2934,137.11,137.06,7.2958]
[1720756304108,7.2931,137.12,137.07,7.2955]
[1720756304295,7.2931,137.12,137.08,7.295]
[1720756304807,7.2925,137.13,137.08,7.295]
[1720756305608,7.293,137.12,137.07,7.2954]
[1720756305805,7.2934,137.11,137.06,7.2959]
[1720756307313,21.87,137.11,137.02,21.7695]
[1720756307487,7.2961,137.06,137.02,21.7695]
[1720756307683,28.65,137.09,137.02,6.0304]
[1720756307884,67.21,137.1,137.02,6.0304]
[1720756307885,36.27819081,137.07,137.02,6.0304]
[1720756308105,7.2964,137.06,137.02,6.0304]
[1720756309089,14.92327648,137.08,137.03,7.2976]
[1720756309290,7.2958,137.07,137.02,13.3282]
[1720756309597,7.2955,137.07,137.02,13.3283]
[1720756310195,7.62807648,137.08,137.02,6.0304]
[1720756310402,7.2962,137.06,137.02,6.0304]
[1720756311507,7.2956,137.07,137.02,13.3284]
[1720756311923,7.294,137.1,137.05,7.2965]
[1720756312108,7.2945,137.09,137.04,7.2969]
[1720756312890,7.295,137.08,137.03,8.75652298]
[1720756314715,7.2957,137.07,137.03,1.45902307]
[1720756314913,7.2957,137.07,137.03,8.75662318]
[1720756315121,7.2952,137.08,137.03,8.75662318]
[1720756316106,7.2946,137.09,137.04,22.7642]
[1720756316418,7.2941,137.1,137.05,7.2964]
[1720756316626,7.2945,137.09,137.04,22.764]
[1720756316794,7.62828957,137.11,137.04,15.4672]
[1720756316990,7.2955,137.07,137.04,15.4672]
[1720756317427,0.17,137.1,137.04,15.4672]
[1720756317599,7.2951,137.08,137.04,15.4672]
[1720756318593,7.2944,137.1,137.05,8.75567362]
[1720756318912,7.2937,137.11,137.06,7.2959]
[1720756319721,7.2945,137.09,137.04,22.7641]
[1720756319903,7.295,137.08,137.04,22.7641]
[1720756320421,7.2942,137.1,137.05,8.75511144]
[1720756320617,7.2943,137.1,137.06,7.296]
[1720756320801,7.2943,137.1,137.05,7.2963]
[1720756321215,7.2935,137.11,137.04,15.4672]
[1720756321410,42.77147533,137.14,137.04,15.4672]
[1720756321716,7.2942,137.1,137.05,7.2963]
[1720756322333,42.77147533,137.14,137.05,6.5842]
[1720756322622,10.2353887,137.16,137.11,13.5936]
[1720756322821,2.96082127,137.17,137.11,13.5936]
[1720756323011,7.2911,137.16,137.11,13.5936]
[1720756324307,10.25122127,137.17,137.13,16.6296]
[1720756324923,7.2907,137.16,137.13,16.6296]
[1720756325112,7.2913,137.15,137.13,16.6296]
[1720756325309,7.2913,137.15,137.11,6.3003]
[1720756326123,7.2909,137.16,137.11,13.5937]
[1720756326641,7.2913,137.15,137.11,6.3003]
[1720756326807,2.96082127,137.17,137.11,6.3003]
[1720756327140,10.25122127,137.17,137.12,7.2925]
[1720756327628,2.96082127,137.17,137.13,7.2922]
[1720756328606,2.96082127,137.17,137.14,7.2917]
[1720756328918,7.2891,137.19,137.15,7.2909]
[1720756329103,7.2897,137.18,137.13,7.2918]
[1720756329300,7.2902,137.17,137.12,7.2927]
[1720756329524,7.2907,137.16,137.12,7.2927]
[1720756329725,7.2913,137.15,137.11,13.5935]
[1720756329911,7.2918,137.14,137.11,6.3003]
[1720756330707,7.2914,137.15,137.11,6.3003]
[1720756331127,7.2918,137.14,137.11,6.3003]
[1720756331313,7.2924,137.13,137.11,6.3003]
[1720756332016,7.2919,137.14,137.11,6.3003]
[1720756332533,7.2914,137.15,137.11,6.3003]
[1720756332738,0.17,137.14,137.11,6.3003]
[1720756332907,7.4618,137.14,137.11,6.3003]
[1720756333303,7.2925,137.13,137.11,6.3003]
[1720756333917,7.292,137.14,137.11,6.3003]
[1720756334122,28.65,137.17,137.11,6.3003]
[1720756334325,7.461,137.16,137.11,13.5934]
[1720756334717,4.05563618,137.18,137.12,7.2926]
[1720756334925,7.2907,137.16,137.11,13.5934]
[1720756335434,0.17,137.17,137.11,6.3003]
[1720756335728,18.5655,137.17,137.11,6.3003]
[1720756335937,45.0,137.16,137.11,6.3003]
[1720756336236,0.17,137.15,137.1,15.9422]
[1720756336428,7.4617,137.15,137.1,23.2359]
[1720756336614,7.2918,137.14,137.1,15.9422]
[1720756338618,7.4614,137.15,137.1,23.236]
[1720756338816,7.2918,137.14,137.1,23.236]
[1720756339010,7.4615,137.15,137.1,23.2359]
[1720756339320,7.4615,137.15,137.11,7.2933]
[1720756339529,7.2912,137.16,137.1,15.9422]
[1720756339733,0.17,137.17,137.1,23.236]
[1720756340037,7.2927,137.13,137.1,15.9422]
[1720756340415,52.9616148,137.17,137.1,15.9422]
[1720756340731,52.9616148,137.17,137.1,23.236]
[1720756340933,20.0,137.16,137.1,23.236]
[1720756341239,52.9616148,137.17,137.1,15.9422]
[1720756341240,0.17,137.15,137.1,15.9422]
[1720756341437,7.2915,137.15,137.1,23.2356]
[1720756341615,7.2915,137.15,137.11,7.2934]
[1720756342336,7.2924,137.13,137.1,15.9422]
[1720756342710,7.2931,137.12,137.1,15.9422]
[1720756344631,7.2936,137.11,137.08,6.402]
[1720756345017,18.2297,137.14,137.08,6.402]
[1720756345233,7.2941,137.1,137.08,6.402]
[1720756345736,73.99,137.13,137.04,18.2427]
[1720756345737,22.04,137.11,137.04,6.6466]
[1720756345935,7.2957,137.07,137.04,6.6466]
[1720756347139,7.2961,137.06,137.02,34.6668]
[1720756348337,7.2967,137.05,137.02,16.4214]
[1720756348844,7.2976,137.03,137.02,16.4214]
[1720756349144,0.17,137.06,137.02,16.4214]
[1720756349622,7.2969,137.05,137.01,6.0892]
[1720756350033,7.2971,137.04,137.01,6.0892]
[1720756350722,0.17,137.06,136.99,15.6517]
[1720756350925,28.65,137.04,136.99,15.6517]
[1720756351130,45.17,137.03,136.98,0.8571494]
[1720756351331,7.2989,137.01,136.98,0.8571494]
[1720756352037,7.4684,137.02,136.98,0.8571494]
[1720756352212,45.17,137.01,136.98,0.8571494]
[1720756352649,7.2993,137.0,136.98,0.8571494]
[1720756353150,52.4688,137.01,136.98,0.8571494]
[1720756353343,0.17,137.02,136.98,0.8571494]
[1720756353344,7.4682,137.02,136.98,0.8571494]
[1720756353643,7.2977,137.03,136.98,8.1573494]
[1720756354034,7.2977,137.03,136.98,0.8571494]
[1720756354221,7.2982,137.02,136.98,0.8571494]
[1720756354548,7.298,137.03,136.98,8.1572494]
[1720756354726,0.17,137.04,136.98,0.8571494]
[1720756354927,7.2984,137.02,136.98,0.8571494]
[1720756355326,45.34,137.01,136.98,0.8571494]
[1720756355659,7.2993,137.0,136.98,0.8571494]
[1720756355848,7.2993,137.0,136.98,0.3571494]
[1720756356422,7.2998,136.99,136.98,0.3571494]
[1720756356622,7.2994,137.0,136.98,0.3571494]
[1720756356826,7.2998,136.99,136.98,0.3571494]
[1720756357542,52.6398,136.99,136.98,0.3571494]
[1720756359520,74.5098,136.99,136.98,0.3571494]
[1720756359726,103.1598,136.99,136.98,0.3571494]
[1720756360616,88.9180001,136.99,136.98,0.3571494]
[1720756361546,110.7880001,136.99,136.98,0.3571494]
[1720756361950,40.1214,136.98,136.93,6.2797]
[1720756362128,40.1214,136.98,136.9,18.2607]
[1720756362129,7.3024,136.94,136.9,24.4173]
[1720756362329,7.3024,136.94,136.9,6.1566]
[1720756362841,7.6421,136.95,136.9,13.4611]
[1720756363039,7.6421,136.95,136.9,6.1566]
[1720756363246,7.3025,136.94,136.9,6.1566]
[1720756364051,0.17,136.93,136.9,6.1566]
[1720756364229,7.3025,136.94,136.9,6.1566]
[1720756364624,7.6421,136.95,136.9,13.461]
[1720756365023,7.6421,136.95,136.92,7.3034]
[1720756365024,0.17,136.95,136.92,7.3034]
[1720756365329,7.4714,136.96,136.91,7.3037]
[1720756365650,7.4714,136.96,136.91,25.5634]
[1720756366446,4.59712631,136.98,136.91,18.2597]
[1720756366633,7.55794758,136.98,136.91,18.2597]
[1720756367030,7.3014,136.96,136.92,7.3035]
[1720756367232,7.3014,136.96,136.91,25.5635]
[1720756367431,7.55794758,136.98,136.9,7.61656669]
[1720756367432,25.80884758,136.98,136.9,6.1566]
[1720756367636,22.84802631,136.98,136.9,24.4173]
[1720756367834,47.96082127,136.97,136.9,25.87696502]
[1720756368042,45.0,136.96,136.9,25.87696502]
[1720756368244,7.3017,136.96,136.91,7.3038]
[1720756368928,7.302,136.95,136.9,31.7216]
[1720756369648,48.13082127,136.97,136.9,31.7216]
[1720756369942,7.3026,136.94,136.9,24.4173]
[1720756370149,7.3019,136.95,136.9,31.7218]
[1720756370354,7.3019,136.95,136.91,7.304]
[1720756371129,7.3019,136.95,136.9,31.7217]
[1720756372739,7.3027,136.94,136.9,24.4173]
[1720756373231,7.3021,136.95,136.9,31.7219]
[1720756373432,7.3024,136.94,136.9,31.7219]
[1720756373736,7.3024,136.94,136.9,6.1566]
[1720756374243,7.3026,136.94,136.9,6.1566]
[1720756374633,7.3021,136.95,136.9,13.461]
[1720756375658,7.3026,136.94,136.9,6.1566]
[1720756375839,0.34,136.96,136.9,24.418]
[1720756376049,7.6416,136.96,136.91,7.304]
[1720756376739,7.3021,136.95,136.9,24.418]
[1720756376944,7.3021,136.95,136.91,7.304]
[1720756378358,7.4716,136.96,136.91,7.304]
[1720756378750,7.3019,136.95,136.91,7.304]
[1720756379454,7.3019,136.95,136.9,31.7224]
[1720756380740,7.3025,136.94,136.9,31.7224]
[1720756380940,21.6725,136.94,136.9,31.7224]
[1720756381164,21.6725,136.94,136.9,24.418]
[1720756381460,10.59095742,136.97,136.92,18.2587]
[1720756381667,17.33082127,136.97,136.94,7.3021]
[1720756381956,14.37,136.99,136.96,7.3014]
[1720756382159,14.37,136.99,136.96,18.2535]
[1720756382380,14.37,136.99,136.96,25.5547]
[1720756383448,7.2992,137.0,136.96,18.2535]
[1720756383767,14.37,137.0,136.97,7.3007]
[1720756384062,17.33082127,137.01,136.97,7.3007]
[1720756384244,17.33082127,137.01,136.98,23.5475]
[1720756384647,17.33082127,137.01,136.98,16.2472]
[1720756384648,2.96082127,137.01,136.98,16.2472]
[1720756385063,10.25952127,137.01,136.98,16.2472]
[1720756385861,2.96082127,137.01,136.98,16.2472]
[1720756386261,2.96082127,137.01,136.99,6.1292]
[1720756386967,2.96082127,137.01,136.99,13.4289]
[1720756387148,2.96082127,137.01,136.99,6.1292]
[1720756389143,7.2972,137.04,136.99,13.4289]
[1720756389756,7.2978,137.03,136.99,6.1292]
[1720756390269,43.5089161,137.05,136.99,6.1292]
[1720756390570,7.2976,137.03,136.99,13.4289]
[1720756391576,0.17,137.04,137.0,7.299]
[1720756391876,18.74513072,137.05,137.01,7.2986]
[1720756392449,18.74513072,137.05,137.0,7.299]
[1720756392747,7.2972,137.04,136.99,31.6781]
[1720756393750,7.62697226,137.07,137.04,7.2967]
[1720756394072,7.2947,137.09,137.04,13.363]
[1720756394367,13.77153074,137.1,137.05,7.2965]
[1720756394552,2.96082127,137.1,137.06,7.2957]
[1720756394960,10.25472127,137.1,137.05,7.2963]
[1720756395164,10.25472127,137.1,137.05,25.5367]
[1720756395673,10.25472127,137.1,137.04,6.0663]
[1720756395674,7.2953,137.08,137.04,6.0663]
[1720756396055,5.94627563,137.1,137.04,13.3631]
[1720756397570,7.295,137.08,137.04,13.3631]
[1720756397956,5.94627563,137.1,137.05,16.0113]
[1720756398168,2.96082127,137.1,137.07,7.2954]
[1720756398464,2.96082127,137.1,137.06,7.2958]
[1720756398871,2.96082127,137.1,137.07,7.2955]
[1720756399672,10.25472127,137.1,137.06,7.2959]
[1720756399868,10.25472127,137.1,137.05,16.0113]
[1720756399869,10.25472127,137.1,137.05,23.3075]
[1720756400074,7.2933,137.12,137.06,18.2401]
[1720756400373,7.2924,137.13,137.08,7.2949]
[1720756401359,7.293,137.12,137.08,7.2949]
[1720756402764,7.293,137.12,137.07,7.2953]
[1720756403677,7.2936,137.11,137.06,25.5359]
[1720756403883,0.17,137.12,137.05,16.0113]
[1720756404053,7.2946,137.09,137.05,16.0113]
[1720756404675,40.2028,137.12,137.05,16.0113]
[1720756404875,40.2028,137.12,137.04,6.0663]
[1720756404876,7.2953,137.08,137.04,6.0663]
[1720756405058,7.4646,137.09,137.04,31.606]
[1720756405254,7.2946,137.09,137.05,7.2965]
[1720756405469,7.2941,137.1,137.05,7.2965]
[1720756406683,7.2955,137.07,137.04,6.0663]
[1720756407374,7.2952,137.08,137.04,6.0663]
[1720756407581,0.34,137.11,137.05,7.2962]
[1720756407582,7.2941,137.1,137.05,7.2962]
[1720756408450,7.2941,137.1,137.06,7.296]
[1720756408650,7.2941,137.1,137.05,7.2963]
[1720756409082,7.2946,137.09,137.04,31.6048]
[1720756409572,7.2941,137.1,137.05,7.2964]
[1720756410678,21.6359,137.07,137.04,6.0663]
[1720756410976,14.34,137.06,137.04,6.0663]
[1720756413059,13.34,137.06,137.04,6.0663]
[1720756413881,14.34,137.07,137.05,7.2966]
[1720756414261,14.34,137.08,137.05,7.2966]
[1720756415579,14.34,137.09,137.06,25.5359]
[1720756415752,21.6349,137.09,137.04,20.4063]
[1720756415958,14.34,137.08,137.04,6.0663]
[1720756416494,14.34,137.08,137.05,7.2963]
[1720756416785,14.34,137.08,137.06,7.296]
[1720756416985,14.34,137.09,137.06,7.296]
[1720756417483,7.2935,137.11,137.06,7.296]
[1720756417662,14.34,137.09,137.05,25.5367]
[1720756418188,14.34,137.08,137.05,18.2403]
[1720756418791,14.34,137.07,137.04,6.0663]
[1720756418968,14.34,137.07,137.04,13.3631]
[1720756419171,7.295,137.08,137.04,13.3631]
[1720756419480,0.17,137.1,137.05,7.2961]
[1720756419779,74.60128423,137.13,137.04,6.0663]
[1720756419780,21.6345,137.09,137.04,6.0663]
[1720756419987,14.34,137.08,137.04,6.0663]
[1720756420163,14.34,137.08,137.05,7.2965]
[1720756420666,14.34,137.08,137.04,6.0663]
[1720756420879,14.34,137.08,137.04,13.3631]
[1720756421072,14.34,137.07,137.04,13.3631]
[1720756421279,14.34,137.07,137.05,7.2966]
[1720756421584,14.34,137.08,137.05,7.2966]
[1720756422085,14.34,137.08,137.06,7.296]
[1720756422284,14.34,137.08,137.05,7.2964]
[1720756422591,14.34,137.08,137.05,25.5375]
[1720756422887,14.34,137.07,137.05,7.2965]
[1720756423210,14.34,137.08,137.05,25.5379]
[1720756423390,7.294,137.1,137.06,7.2959]
[1720756423688,14.34,137.08,137.05,25.5377]
[1720756424799,14.34,137.07,137.04,6.0663]
[1720756425087,14.34,137.07,137.04,13.3631]
[1720756425285,14.34,137.07,137.05,7.2962]
[1720756425489,14.34,137.07,137.04,13.3631]
[1720756425684,21.6356,137.07,137.04,6.0663]
[1720756425886,18.2349,137.1,137.02,15.2729]
[1720756425887,14.34,137.05,137.02,15.2729]
[1720756426084,14.34,137.04,137.02,22.5707]
[1720756426288,14.34,137.06,137.03,7.2976]
[1720756426592,14.34,137.07,137.04,7.2971]
[1720756426987,7.2947,137.09,137.04,7.2971]
[1720756427186,14.34,137.07,137.04,7.2971]
[1720756428498,14.34,137.06,137.03,25.5414]
[1720756428666,7.9704669,137.1,137.01,24.6697]
[1720756428867,14.34,137.05,137.02,7.2981]
[1720756429071,14.34,137.06,137.03,7.2976]
[1720756429800,14.34,137.05,137.01,31.9681]
[1720756430102,14.34,137.05,137.02,7.2981]
[1720756430712,14.34,137.05,137.01,24.6697]
[1720756431696,14.34,137.04,137.01,24.6697]
[1720756432374,14.34,137.03,137.01,6.423]
[1720756432574,14.34,137.02,136.99,23.1553]
[1720756432980,14.34,137.02,137.0,7.2991]
[1720756434093,14.34,137.02,137.01,7.2987]
[1720756434402,14.34,137.03,137.02,7.2981]
[1720756434778,14.34,137.03,137.0,7.299]
[1720756435099,14.34,137.03,137.0,25.5459]
[1720756435598,7.2966,137.05,137.0,25.5459]
[1720756435797,45.34,137.04,136.99,23.1553]
[1720756436096,0.34,137.04,136.99,23.1553]
[1720756436272,7.6373,137.04,136.99,23.1553]
[1720756437678,7.2973,137.04,137.0,7.2991]
[1720756438603,52.2967,137.05,137.0,7.2991]
[1720756438795,45.0,137.05,137.01,7.2985]
[1720756439003,14.34,137.04,137.02,7.2982]
[1720756439378,14.34,137.04,137.02,25.5436]
[1720756439577,14.34,137.04,137.02,18.2454]
[1720756440392,25.24658074,137.09,137.03,7.2974]
[1720756440393,7.2951,137.08,137.03,7.2974]
[1720756440586,14.34,137.06,137.03,7.2974]
[1720756441089,14.34,137.05,137.03,7.2974]
[1720756441395,14.34,137.05,137.02,25.5436]
[1720756442993,14.34,137.05,137.03,7.2974]
[1720756443502,0.17,137.08,137.04,7.2971]
[1720756443806,0.17,137.08,137.02,18.2454]
[1720756443807,14.34,137.06,137.03,7.2975]
[1720756444111,14.34,137.05,137.03,7.2975]
[1720756444791,14.34,137.05,137.02,25.5433]
[1720756445198,67.31,137.08,136.99,34.1039]
[1720756445396,41.06557814,137.07,137.0,7.2988]
[1720756445696,7.2968,137.05,137.0,7.2988]
[1720756445886,7.2968,137.05,137.01,7.2986]
[1720756446198,0.17,137.06,137.03,7.2976]
[1720756446408,14.34,137.05,137.03,7.2976]
[1720756447084,14.34,137.06,137.03,7.2976]
[1720756447912,0.17,137.07,137.01,25.5451]
[1720756448212,14.34,137.05,137.01,25.5451]
[1720756448516,14.34,137.04,137.01,25.5451]
[1720756448980,14.34,137.03,136.99,23.1551]
[1720756449181,14.34,137.03,137.0,7.2992]
[1720756449607,14.34,137.03,137.01,7.2987]
[1720756449784,14.34,137.03,137.0,25.547]
[1720756450688,21.6378,137.03,136.99,23.1552]
[1720756451104,14.34,137.03,136.99,41.4045]
[1720756451807,14.34,137.03,137.0,7.2992]
[1720756452189,14.34,137.03,136.99,41.4045]
[1720756452389,21.6376,137.03,136.99,41.4045]
[1720756452897,14.34,137.03,136.99,41.4045]
[1720756453790,7.2973,137.04,137.0,7.2989]
[1720756453997,7.2973,137.04,136.99,41.4045]
[1720756454191,7.2973,137.04,137.0,7.2991]
[1720756456293,7.2977,137.03,136.99,41.4046]
[1720756456506,7.2984,137.02,136.99,15.8557]
[1720756456701,7.2979,137.03,136.99,15.8557]
[1720756459592,7.2979,137.03,136.99,23.1554]
[1720756460731,14.34,137.0,136.97,6.1082]
[1720756460906,14.34,136.98,136.97,6.1082]
[1720756461219,14.34,136.98,136.95,23.0401]
[1720756461397,14.34,136.97,136.95,23.0401]
[1720756461794,14.34,136.97,136.96,7.3014]
[1720756462696,14.34,136.97,136.95,41.2937]
[1720756462910,14.34,136.97,136.96,7.3014]
[1720756463417,14.34,136.98,136.96,7.3014]
[1720756463719,14.34,137.01,136.99,7.2995]
[1720756463931,2.89504755,137.05,137.01,7.2982]
[1720756464105,14.34,137.04,137.02,7.2981]
[1720756464913,14.34,137.04,137.01,7.2985]
[1720756465706,7.2979,137.03,136.97,18.2515]
[1720756465912,14.34,137.01,136.97,18.2515]
[1720756466115,14.34,137.01,136.97,25.5521]
[1720756466432,14.34,137.0,136.97,18.2515]
[1720756467531,14.34,136.99,136.96,13.8433]
[1720756468318,14.34,136.99,136.97,7.3006]
[1720756468827,14.34,136.98,136.95,41.2935]
[1720756469307,14.34,136.97,136.95,41.2935]
[1720756469511,7.4695,137.0,136.95,41.2935]
[1720756469512,14.34,136.98,136.95,41.2935]
[1720756470633,14.34,136.98,136.96,7.3013]
[1720756470810,14.34,136.99,136.96,7.301]
[1720756471412,21.6398,136.99,136.95,41.2936]
[1720756471615,14.34,136.98,136.95,41.2936]
[1720756474537,14.34,136.99,136.95,33.9919]
[1720756474748,14.34,136.99,136.96,7.301]
[1720756475032,14.34,136.98,136.95,41.2936]
[1720756475240,14.34,136.99,136.96,7.3013]
[1720756475632,14.34,136.99,136.95,33.9919]
[1720756476219,14.34,137.0,136.97,7.3004]
[1720756476429,14.34,137.0,136.97,25.5525]
[1720756476743,14.93376403,137.02,136.97,18.2521]
[1720756477031,14.34,137.0,136.97,25.0526]
[1720756477239,14.34,137.01,136.97,17.7521]
[1720756477535,14.34,137.02,136.97,32.0921]
[1720756477740,14.34,137.02,136.98,13.3984]
[1720756477907,21.6383,137.02,136.98,6.0983]
[1720756478113,14.34,137.01,136.98,6.0983]
[1720756479514,21.6387,137.01,136.98,6.0983]
[1720756479716,14.34,136.99,136.95,23.04]
[1720756479936,14.34,136.98,136.95,23.04]
[1720756480316,14.34,136.99,136.96,7.3013]
[1720756480517,14.34,137.0,136.96,7.3013]
[1720756481029,14.34,137.0,136.97,7.3008]
[1720756481325,14.34,137.0,136.96,25.5533]
[1720756481715,14.34,137.01,136.98,18.2507]
[1720756481934,7.63343617,137.04,137.0,18.2477]
[1720756482239,14.34,137.05,137.01,7.68134157]
[1720756482820,14.34,137.05,137.01,7.46276343]
[1720756483018,7.2956,137.07,137.02,7.2981]
[1720756483323,14.34,137.06,137.02,7.2981]
[1720756483723,14.34,137.05,137.0,40.0098]
[1720756484030,14.34,137.05,137.01,7.96306344]